Cogmind - Beta 11 @@@ ROGUE MODE // 2022.03.17 @ 22:43:35 Player: rusmal Result: Destroyed by D-53 Grenadier with Mini Grenade Launcher Performance ------------- Evolutions (0) 0 Regions Visited (2) 400 Robots Destroyed (17) 85 Value Destroyed (251) 251 Prototype IDs (4) 80 Alien Tech Used (0) 0 Bonus (3) 3 TOTAL SCORE: 819 Bonus ------- Follower Combat Kills 53 Friendly Fire -50 Cogmind --------- Core Integrity 0/250 Matter 134/300 Energy 100/100 System Corruption 16% Temperature Cool (0) Movement Treading (160) Location -10/Mines Parts ------- > --- POWER (1) -------- (None) > --- PROPULSION (2) --- Improved Treads Improved Treads > --- UTILITY (2) ------ Structural Scanner > --- WEAPON (2) ------- Rocket Launcher > --- INVENTORY (5) ---- Ion Engine Improved Treads VTOL Module VTOL Module Assault Rifle Peak State ------------ > --- POWER ------------ Ion Engine > --- PROPULSION ------- Improved Treads Improved Treads > --- UTILITY ---------- Small Storage Unit Structural Scanner > --- WEAPON ----------- Assault Rifle Rocket Launcher > --- INVENTORY -------- Ion Engine Improved Treads Improved Treads VTOL Module VTOL Module VTOL Module Assault Rifle Rocket Launcher [Rating: 11] Favorites ----------- Power Ion Engine Engine Ion Engine Propulsion Improved Treads Treads Improved Treads Utility Small Storage Unit Device Structural Scanner Storage Small Storage Unit Processor Targeting Computer Weapon Assault Rifle Ballistic Gun Assault Rifle Launcher Rocket Launcher Build | -11 -10 -10 ------- Run | Scr Mat Min Slots Evolved . | . . . Power . | . . . Propulsion . | . . . Utility . | . . . Weapon . | . . . Parts Attached 16 | 6 8 2 Power 1 | 1 . . Engine 1 | 1 . . Core . | . . . Reactor . | . . . Propulsion 6 | 2 3 1 Treads 6 | 2 3 1 Leg . | . . . Wheel . | . . . Hover . | . . . Flight . | . . . Utility 4 | 1 3 . Device 1 | . 1 . Storage 2 | 1 1 . Processor 1 | . 1 . Hackware . | . . . Protection . | . . . Artifact . | . . . Weapon 5 | 2 2 1 Energy Gun . | . . . Energy Cannon . | . . . Ballistic Gun 3 | 2 1 . Ballistic Cannon . | . . . Launcher 2 | . 1 1 Special Weapon . | . . . Impact Weapon . | . . . Slashing Weapon . | . . . Piercing Weapon . | . . . Special Melee Weapon . | . . . Unidentified Prototypes . | . . . Parts Lost 4 | . . 4 Power . | . . . Propulsion 1 | . . 1 Utility 1 | . . 1 Weapon 2 | . . 2 Highest Loss Streak 3 | . . 3 To Critical Strikes . | . . . Average Slot Usage (%) 96 | . 98 83 Engine 12 | . 14 6 Treads 28 | . 28 28 Device 12 | . 11 14 Storage 13 | . 14 7 Processor 1 | . 1 . Ballistic Gun 25 | . 27 12 Launcher 1 | . . 13 Naked Turns . | . . . Heaviest Build 17 | 14 17 17 Greatest Support 46 | 40 46 46 Greatest Overweight (x) . | . . . Average Overweight (x) . | . . . Largest Inventory Capacity 8 | 8 8 8 Average Capacity 7 | 7 8 6 Most Carried 8 | 6 8 8 Average Carried 7 | 2 7 6 Final Capacity 8 | 8 8 5 Final Carried 8 | 6 8 5 Class Distribution -------------------- 100% | Mutant Dominant Class ---------------- Mutant | -10/Materials Mutant | -10/Mines Resources | -11 -10 -10 ----------- Run | Scr Mat Min Matter Collected 573 | 214 339 20 Remotely . | . . . Salvage Created 494 | . 463 31 Parts 34 | . 31 3 Haulers Intercepted 2 | . 2 . Recyclers Shooed . | . . . Parts Field Recycled . | . . . Retrieved Matter . | . . . Parts Self-Destructed . | . . . Prevented . | . . . Kills | -11 -10 -10 ------- Run | Scr Mat Min Combat Hostiles Destroyed 16 | . 10 6 Guns 10 | . 10 . AOE 6 | . . 6 Classes Destroyed 8 | . 6 2 Worker 1 | . . 1 Builder 1 | . 1 . Hauler 2 | . 2 . Recycler 1 | . 1 . Operator 1 | . 1 . Swarmer 7 | . 6 1 Grunt 4 | . 4 . Assembled 5 | . . 5 Best Kill Streak 5 | . 3 5 Combat Bots Only 5 | . 3 5 Max Kills in Single Turn 2 | . 1 2 Gunslinging . | . . . Exploded 2 | . . 2 Melee . | . . . Uniques/NPCs Destroyed . | . . . Combat | -11 -10 -10 -------- Run | Scr Mat Min Damage Taken 1204 | . 257 947 Core 270 | . 25 245 Absorbed by Shields . | . . . Regen/Repaired (Parts) 34 | . 34 . Core Remaining (%) 100 | 100 . . Volleys Fired 49 | . 34 15 Largest 2 | . 2 1 Hottest 40 | . 40 33 Shots Fired 83 | . 68 15 Gun 68 | . 68 . Cannon . | . . . Launcher 15 | . . 15 Special . | . . . Kinetic 68 | . 68 . Thermal . | . . . Explosive 15 | . . 15 Electromagnetic . | . . . Robot Hit Streak 10 | . 10 2 Robot Miss Streak 7 | . 7 4 Penetration Max . | . . . Secondary Targets . | . . . Shots Hit Robots 46 | . 43 3 Core Hits 35 | . 23 12 Critical Kills . | . . . Critical Parts Destroyed . | . . . Critical Strikes . | . . . Melee Attacks . | . . . Impact . | . . . Slashing . | . . . Piercing . | . . . Sneak Attacks . | . . . Combat Hostiles . | . . . Follow-up Attacks . | . . . Damage Inflicted 1117 | . 575 542 Guns 561 | . 561 . Cannons . | . . . Explosions 542 | . . 542 Melee . | . . . Ramming 14 | . 14 . Kinetic 561 | . 561 . Thermal . | . . . Explosive 542 | . . 542 Electromagnetic . | . . . Impact . | . . . Slashing . | . . . Piercing . | . . . Highest Corruption 16 | . 2 16 Average Corruption 3 | . 2 8 Corruption Purged . | . . . Corruption Blocked . | . . . Effects 30 | . 25 5 Message Errors 7 | . 7 . Matter Fused 5 | . 4 1 Heat Flow Errors 7 | . 7 . Energy Discharges 2 | . 2 . Data Loss (minor) 6 | . 5 1 Data Loss (major) 3 | . . 3 Overload Shots . | . . . Overflow Damage 68 | . . 68 Projectiles . | . . . Explosions 68 | . . 68 Melee . | . . . Knockbacks . | . . . Impact . | . . . Kinetic . | . . . Secondary . | . . . Self-Inflicted Damage 179 | . . 179 Shots 5 | . . 5 Rammed 3 | . 3 . Targets Rammed 3 | . 3 . Kicked . | . . . Crushed . | . . . Highest Temperature 266 | . 266 . Average Temperature 93 | . 93 . Received Heat Transfer 60 | . 60 . Siege Activations . | . . . Robots Corrupted . | . . . Combat Hostiles . | . . . Parts Fried . | . . . Impact Corruptions . | . . . Robots Melted . | . . . Combat Hostiles . | . . . Parts Melted . | . . . Heat Transferred . | . . . Parts Sabotaged . | . . . Parts Stolen . | . . . Parts Stripped . | . . . Power Chain Reactions . | . . . Missiles Intercepted . | . . . Alert | -11 -10 -10 ------- Run | Scr Mat Min Peak Influence 195 | . 184 195 Initial 11 | . . 11 Average 68 | . 69 86 Maximum Alert Level . | . . . Low Security (%) 100 | 100 100 100 Level 1 . | . . . Level 2 . | . . . Level 3 . | . . . Level 4 . | . . . Level 5 . | . . . High Security . | . . . Max Security . | . . . Squads Dispatched 1 | . 1 . Investigation 1 | . 1 . Extermination . | . . . Reinforcement . | . . . Assault . | . . . Garrison . | . . . Intercept . | . . . Searches Triggered . | . . . Construction Impeded . | . . . Haulers Reinforced . | . . . Active Scanning Responses . | . . . Cargo Convoy Interrupts . | . . . Stealth | -11 -10 -10 --------- Run | Scr Mat Min Distress Signals 1 | . 1 . Communications Jammed . | . . . Distress Signals . | . . . Times Spotted 41 | . 25 16 Peak Tracking Total 6 | . 3 6 Tactical Retreats 2 | . 1 1 Traps | -11 -10 -10 ------- Run | Scr Mat Min Traps Triggered 1 | . 1 . Indirectly . | . . . Trap Hack Attempts . | . . . Triggered . | . . . Disarmed . | . . . Reprogrammed . | . . . Reused . | . . . Traps Extracted . | . . . Installed . | . . . Triggered . | . . . Machines | -11 -10 -10 ---------- Run | Scr Mat Min Machines Disabled . | . . . Max in Single Turn . | . . . Machines Sabotaged . | . . . Garrisons Compromised . | . . . Overloaded Fab Kills . | . . . Hacking | -11 -10 -10 --------- Run | Scr Mat Min Machines Accessed 11 | . 11 . Terminals 8 | . 8 . Fabricators . | . . . Repair Stations 1 | . 1 . Recycling Units 2 | . 2 . Scanalyzers . | . . . Garrison Access . | . . . Total Hacks 37 | . 37 . Successful 24 | . 24 . Failed 13 | . 13 . Catastrophic . | . . . Database Lockouts . | . . . Manual 21 | . 21 . Terminals 32 | . 32 . Fabricators . | . . . Repair Stations 2 | . 2 . Recycling Units 3 | . 3 . Scanalyzers . | . . . Garrison Access . | . . . Terminal Hacks 11 | . 11 . Part Schematic 1 | . 1 . Robot Analysis 3 | . 3 . Prototype ID Bank 2 | . 2 . Recycling Unit Index 1 | . 1 . Alert Level 1 | . 1 . Unreport Threat 1 | . 1 . Hauler Manifests 1 | . 1 . Registered Prototypes 1 | . 1 . Fabricator Hacks . | . . . Repair Station Hacks 2 | . 2 . Scan Component 1 | . 1 . Repair 1 | . 1 . Recycling Unit Hacks 2 | . 2 . Report Inventory 2 | . 2 . Scanalyzer . | . . . Garrison Access Hacks . | . . . Unauthorized Hacks 9 | . 9 . Terminals 8 | . 8 . Assimilate 2 | . 2 . Botnet 5 | . 5 . Operators 1 | . 1 . Fabricators . | . . . Repair Stations . | . . . Recycling Units 1 | . 1 . Tunnel 1 | . 1 . Scanalyzers . | . . . Garrison Access . | . . . Data Cores Recovered 1 | . 1 . Used 1 | . 1 . Hacking Detections 8 | . 8 . Full Trace Events . | . . . Feedback Events . | . . . Feedback Blocked . | . . . Robot Schematics Acquired . | . . . Robots Built . | . . . Authchips . | . . . Time . | . . . Total Robot Build Rating . | . . . Part Schematics Acquired 1 | . 1 . Parts Built . | . . . Authchips . | . . . Time . | . . . Total Part Build Rating . | . . . Parts Repaired 1 | . 1 . Time 26 | . 26 . Parts Recycled . | . . . Recycled Matter . | . . . Retrieved Matter . | . . . Retrieved Components . | . . . Parts Scanalyzed . | . . . Part Schematics Acquired . | . . . Parts Damaged . | . . . Bothacking | -11 -10 -10 ------------ Run | Scr Mat Min Used RIF Installer . | . . . Robots Hacked . | . . . Non-combat . | . . . Combat . | . . . Robot Hacks Applied . | . . . Relay Couplers Released . | . . . Fabnet Peak Effective % . | . . . Robots Rewired . | . . . Allies Hacked . | . . . Hacks Repelled . | . . . Allies | -11 -10 -10 -------- Run | Scr Mat Min Total Allies 4 | . . 4 Largest Group 3 | . . 3 Highest-Rated Group 40 | . . 40 Highest-Rated Ally 31 | . . 31 Total Orders . | . . . Ally Attacks 25 | . . 25 Total Damage 297 | . . 297 Kills 6 | . . 6 Allies Corrupted . | . . . Allies Melted . | . . . Intel | -11 -10 -10 ------- Run | Scr Mat Min Robot Analysis Total 3 | . 3 . Derelict Logs Recovered . | . . . Drone Launches . | . . . Drone Recoveries . | . . . Exploration | -11 -10 -10 ------------- Run | Scr Mat Min Turns Passed 1932 | 91 1574 267 Spaces Moved 1051 | 51 858 142 Core 4 | 4 . . Treads 1047 | 47 858 142 Legs . | . . . Wheels . | . . . Hover . | . . . Flight . | . . . Fastest Speed 50 | 50 160 160 Average Speed 159 | 151 160 160 Slowest Speed 160 | 160 160 160 Overloaded Moves . | . . . Propulsion Burnouts . | . . . Robots Hopped . | . . . Cave-ins Triggered 1 | . . 1 Exploration Rate (%) 43 | 4 98 29 Regions Visited 2 Branch Regions 1 Pre-discovered Areas 1 | . 1 . Known Exits Taken . | . . . Unknown Exits Taken 2 | 1 1 . Scrap Searched . | . . . Spaces Dug 16 | . . 16 Terrain Destroyed 135 | . . 135 Melee . | . . . Projectile . | . . . AOE 135 | . . 135 Terrain Rammed . | . . . Walls Destroyed . | . . . Machines Disabled . | . . . Actions | -11 -10 -10 --------- Run | Scr Mat Min Total 1236 | 62 1008 166 Wait 70 | . 65 5 Move 1049 | 50 857 142 Hop . | . . . Pick Up 27 | 6 19 2 Fast Attach 9 | 6 3 . Attach 2 | . . 2 Detach 1 | . 1 . Swap 5 | . 5 . Drop 21 | . 21 . Fire 49 | . 34 15 Melee . | . . . Ram . | . . . Kick . | . . . Crush 3 | . 3 . Escape Stasis . | . . . Rewire . | . . . Trap . | . . . Miscellaneous . | . . . Route ------- -11/Scrapyard -10/Materials (discovered 5 exits: [*Mat x3] / [*Min x2]) -10/Mines (discovered 1 exit: [*Mat]) History --------- Turn | Location | Event 2 | -11/Scrapyard | Met Revision 17 60 | -11/Scrapyard | Discovered new exit (range 16) 92 | -11/Scrapyard | Entered Materials 307 | -10/Materials | Build established: Mutant 312 | -10/Materials | Discovered new exit (range 6) 757 | -10/Materials | Discovered new exit (range 16) 1005 | -10/Materials | Repaired Assault Rifle 1041 | -10/Materials | Discovered new exit (range 15) 1218 | -10/Materials | Discovered new exit (range 11) 1396 | -10/Materials | Discovered new exit (range 15) 1666 | -10/Materials | Entered Mines 1667 | -10/Mines | Assembled infested the area 1672 | -10/Mines | Assisted by a Guerilla fighting off Assembled 1673 | -10/Mines | Assisted by bots powering up and referring to "LRC-V3" 1765 | -10/Mines | Discovered new exit (range 14) 1803 | -10/Mines | Crushed by falling debris 1803 | -10/Mines | System corruption reached 10% 1834 | -10/Mines | Lost 3 parts (1n1u1w) 1856 | -10/Mines | Met a Derelict testing a Signal Generator 1919 | -10/Mines | Core integrity fell below 50% 1932 | -10/Mines | Core integrity fell below 20% 1933 | -10/Mines | Destroyed by D-53 Grenadier with Mini Grenade Launcher Last Messages --------------- 01908_ The unstable cave ceiling collapses. 01908_ 24-VXJ(g): "Looks like the friends we called actually did show up to play. Couldn't you guys just take that other tunnel?" 01912_ Destroyed Asb. Hover Unit. 01914_ The unstable cave ceiling collapses. 01918_ Assault Rifle destroyed. 01918_ Destroyed Assault Rifle. 01919_ The unstable cave ceiling collapses. 01919_ as-86603 destroyed. 01919_ as-83123 destroyed. 01919_ K-01 Serf collects debris. 01920_ D-53 Grenadier destroyed. 01922_ System corrupted: Matter fused (-5). 01922_ The unstable cave ceiling collapses. 01923_ K-01 Serf collects debris. 01925_ The unstable cave ceiling collapses. 01926_ 24-VXJ(g) destroyed. 01927_ The unstable cave ceiling collapses. 01927_ K-01 Serf destroyed. 01931_ The unstable cave ceiling collapses. Map ----- +----------------------------------------------------+ | ????## # ????????????? | | ????## ####????????????? | | ????## ###??????????????? | | ????## # ####??????????????? | | ????### # #####??????????????? | | ????### # #######?????????????? | | ?????## # ###?????????????? | | ?????### # ## ##### ##???????? | | ?????#### ##### ##???????? | | ??????#### =%* ##???????? | | ???????## #% < ##???????? | | ???????#### # % %#######???????? | | ???????#### # ### %#############???? | | ????????### #####% #####???#####???? | | ?????????## ##### ######### ##???? | | ??????##### ##?# ###### ##???? | | ?????###### ### # ###???? | | ????#### # ### = # ##????? | | ???#### # d% # ###????? | | ???### ! ## ####???? | | ???## ####??? | | ???### ###### | | ???## #=#### ##### | | ???## ##%#### | | ???### * ##[*#### | | ????### @ *=% ##### ### | | ????## = ##### #### | | ????## ## #########? | | ????#### ### #######?? | | ????### ###### ##??????? | | ?????### # ######## ##??????? | | ?????###### # ###???#### ##??????? | | ?????## #####?????## ##???????? | | ?????## #########??????#####???????? | | ?????## #### ###??????#####???????? | | ????### ### ##??????????????????? | | ????### ##??????????????????? | | ????## & ##??????????????????? | | ????## ##??????????????????? | | ????### ###??????????????????? | | ????#### ######??????????????????? | | ?????###########???????????????????? | | ??????#######??????????????????????? | | ???????????????????????????????????? | | ???????????????????????????????????? | | | | | | | | | | | +----------------------------------------------------+ Best States ------------- Heat Dissipation 25 Energy Generation 10 Energy Capacity 250 Matter Stores 300 Matter Capacity 300 Sight Range 16 Terrain Scan Density 10 Evasion (%) 40 Targeting Accuracy 5 Recoil Reduction 2 Item Schematics ----------------- Med. Storage Unit | -10/Materials | Hacked Robot Schematics ------------------ None Fabricated ------------ Nothing Alien Tech Used ----------------- None Achievements -------------- None Challenges ------------ None Game ------ Seed TrackerScanMace Manual? 0 Play Time 00:21:33 Cumulative 80.6 hours Start 2022.03.17 @ 22:22:25 End 2022.03.17 @ 22:43:35 Sessions 1 Manual Loads 0 Difficulty Rogue Special Mode None Game No. 75 Rogue 75 Adventurer 0 Explorer 0 Win Type - Total 2 Types 1/0/1/0/0/0/0/0/0 Lore% 51 Gallery% 54 Achievement% 48 Wizard Run 0 Options --------- ASCII 1 Keyboard 1 Movement Numpad Keybinds 0 Fullscreen 2 Font 18/SmallcapsGlow Map View 76x50 Tactical HUD 1 Map Filters NONE Filters NONE Steam 1 RUN: fab72dbf-ec3c-4b54-88dd-16e95f92360a